[Event "FIDE World Cup G12-B 2024"]
[Site "Batumi"]
[Date "2024.06.29"]
[Round "7.8"]
[White "Tereshchenko, Eliza"]
[Black "Abylaykyzy, Bibisara"]
[Result "1-0"]
[ECO "D00"]
[WhiteElo "1694"]
[BlackElo "1577"]
[Annotator "NA RC"]
[PlyCount "75"]
[EventDate "2024.06.23"]
[EventType "swiss"]
[EventCountry "GEO"]
[SourceTitle "playchess.com"]
[Source "ChessBase"]
[SourceQuality "1"]
[TimeControl "5400+30"]

1. d4 {[%emt 0:00:02]} Nf6 {[%emt 0:00:04]} 2. Bf4 {[%emt 0:00:08]} d5 {[%emt 0:00:05]} 3. e3 {[%emt 0:00:05]} c5 {[%emt 0:00:08]} 4. c3 {[%emt 0:00:03]} Nc6 {[%emt 0:00:03]} 5. Nd2 {[%emt 0:00:05]} Bf5 {[%emt 0:00:06]} 6. Qb3 {[%emt 0:00:07]} Qc8 {[%emt 0:00:05]} 7. Be2 {[%emt 0:00:50]} c4 {[%emt 0:01:34]} 8. Qd1 {[%emt 0:00:10]} b5 {[%emt 0:00:12]} 9. a3 {[%emt 0:02:11]} a5 {[%emt 0:01:35]} 10. h3 {[%emt 0:04:03]} e6 {[%emt 0:05:04]} 11. Ngf3 {[%emt 0:03:04]} h6 {[%emt 0:03:30]} 12. Ne5 {[%emt 0:05:05]} Nxe5 {[%emt 0:00:55]} 13. Bxe5 {[%emt 0:01:38]} Nd7 {[%emt 0:00:12]} 14. Bh2 {[%emt 0:00:57]} Nb6 {[%emt 0:01:33]} 15. O-O {[%emt 0:06:39]} Be7 {[%emt 0:02:22]} 16. Re1 {[%emt 0:04:22]} Na4 {[%emt 0:00:29]} 17. Qc1 {[%emt 0:01:13]} O-O {[%emt 0:08:07]} 18. Bd1 {[%emt 0:03:12]} Qc6 {[%emt 0:01:52]} 19. Bc2 {[%emt 0:05:52]} Bxc2 {[%emt 0:02:49]} 20. Qxc2 {[%emt 0:00:03]} b4 {[%emt 0:00:06]} 21. e4 {[%emt 0:05:05]} Ra7 {[%emt 0:06:30]} 22. exd5 {[%emt 0:01:17]} exd5 {[%emt 0:00:50]} 23. Nf3 {[%emt 0:11:59]} Rfa8 {[%emt 0:07:21]} 24. Re3 {[%emt 0:06:12]} bxa3 {[%emt 0:06:36]} 25. bxa3 {[%emt 0:00:45]} Rb7 {[%emt 0:00:05]} 26. Ne5 {[%emt 0:01:29]} Qb5 {[%emt 0:02:08]} 27. Bf4 {[%emt 0:04:32]} Qb2 {[%emt 0:01:57]} 28. Qxb2 {[%emt 0:00:09]} Nxb2 {[%emt 0:16:55]} 29. a4 {[%emt 0:06:57]} Ra6 {[%emt 0:00:34]} 30. Re2 {[%emt 0:02:00]} Rab6 {[%emt 0:07:03]} 31. g3 {[%emt 0:07:51]} Rb3 {[%emt 0:01:12]} 32. Nc6 {[%emt 0:01:01]} Ra3 {[%emt 0:07:56]} 33. Rb1 {[%emt 0:01:10]} Bb4 {[%emt 0:04:00]} 34. Rexb2 {[%emt 0:00:54]} Rxc3 {[%emt 0:02:02]} 35. Nxa5 {[%emt 0:00:22]} Ra7 {[%emt 0:05:57]} 36. Rxb4 {[%emt 0:00:30]} Rxa5 {[%emt 0:00:24]} 37. Rb8+ {[%emt 0:00:05]} Kh7 {[%emt 0:00:04]} 38. Bd2 {[%emt 0:00:03]} 1-0

[Event "FIDE World Cup G12-B 2024"]
[Site "Batumi"]
[Date "2024.06.29"]
[Round "7.9"]
[White "Rusitashvili, Tea"]
[Black "Siddhi Rao"]
[Result "0-1"]
[ECO "C47"]
[WhiteElo "1535"]
[BlackElo "1601"]
[Annotator "NA RC"]
[PlyCount "76"]
[EventDate "2024.06.23"]
[EventType "swiss"]
[EventCountry "GEO"]
[SourceTitle "playchess.com"]
[Source "ChessBase"]
[SourceQuality "1"]
[TimeControl "5400+30"]

1. e4 {[%emt 0:00:03]} e5 {[%emt 0:00:08]} 2. Nf3 {[%emt 0:00:11]} Nc6 {[%emt 0:00:05]} 3. Nc3 {[%emt 0:00:10]} Nf6 {[%emt 0:00:06]} 4. d4 {[%emt 0:00:10]} exd4 {[%emt 0:00:04]} 5. Nxd4 {[%emt 0:00:07]} Bb4 {[%emt 0:00:04]} 6. Nxc6 {[%emt 0:01:17]} bxc6 {[%emt 0:00:04]} 7. Bd2 {[%emt 0:01:04]} Qe7 {[%emt 0:03:08]} 8. Bd3 {[%emt 0:02:59]} Bxc3 {[%emt 0:02:10]} 9. Bxc3 {[%emt 0:00:25]} Nxe4 {[%emt 0:00:43]} 10. O-O {[%emt 0:05:39]} Nxc3 {[%emt 0:00:38]} 11. bxc3 {[%emt 0:00:19]} O-O {[%emt 0:01:11]} 12. Re1 {[%emt 0:00:58]} Qf6 {[%emt 0:00:47]} 13. Re3 {[%emt 0:00:28]} g6 {[%emt 0:02:23]} 14. Rf3 {[%emt 0:04:20]} Qg7 {[%emt 0:00:48]} 15. Rb1 {[%emt 0:01:56]} d5 {[%emt 0:05:50]} 16. Qd2 {[%emt 0:01:14]} c5 {[%emt 0:03:20]} 17. c4 {[%emt 0:02:50]} Be6 {[%emt 0:07:44]} 18. Qf4 {[%emt 0:06:58]} Rab8 {[%emt 0:04:51]} 19. Qc1 {[%emt 0:11:58]} dxc4 {[%emt 0:01:08]} 20. Bf1 {[%emt 0:00:33]} Rb6 {[%emt 0:05:01]} 21. Rxb6 {[%emt 0:03:28]} axb6 {[%emt 0:02:50]} 22. Ra3 {[%emt 0:02:24]} Qe5 {[%emt 0:01:01]} 23. Qd2 {[%emt 0:01:44]} Qd4 {[%emt 0:01:24]} 24. Qe2 {[%emt 0:06:11]} Rd8 {[%emt 0:03:16]} 25. h3 {[%emt 0:03:11]} Qa1 {[%emt 0:02:36]} 26. Re3 {[%emt 0:04:45]} Rd6 {[%emt 0:14:30]} 27. Ra3 {[%emt 0:09:16]} Qd4 {[%emt 0:02:51]} 28. c3 {[%emt 0:05:51]} Qf6 {[%emt 0:00:58]} 29. Qe3 {[%emt 0:02:30]} Rd1 {[%emt 0:02:10]} 30. Qe2 {[%emt 0:01:16]} Qd8 {[%emt 0:05:06]} 31. Qf3 {[%emt 0:01:12]} Qd3 {[%emt 0:01:14]} 32. Qxd3 {[%emt 0:02:22]} cxd3 {[%emt 0:00:08]} 33. Ra8+ {[%emt 0:00:06]} Kg7 {[%emt 0:00:05]} 34. Rd8 {[%emt 0:00:14]} Bc4 {[%emt 0:00:10]} 35. g3 {[%emt 0:03:36]} d2 {[%emt 0:00:06]} 36. Kh2 {[%emt 0:01:02]} Bxf1 {[%emt 0:00:07]} 37. g4 {[%emt 0:00:15]} c4 {[%emt 0:00:04]} 38. Kg3 {[%emt 0:00:15]} Bd3 {[%emt 0:00:04]} 0-1

[Event "FIDE World Cup G12-B 2024"]
[Site "Batumi"]
[Date "2024.06.29"]
[Round "7.10"]
[White "Kvirkvelia, Anastasia"]
[Black "Chiokadze, Barbare"]
[Result "1-0"]
[ECO "B23"]
[WhiteElo "1440"]
[BlackElo "1461"]
[Annotator "NA RC"]
[PlyCount "111"]
[EventDate "2024.06.23"]
[EventType "swiss"]
[EventCountry "GEO"]
[SourceTitle "playchess.com"]
[Source "ChessBase"]
[SourceQuality "1"]
[TimeControl "5400+30"]

1. e4 {[%emt 0:00:02]} c5 {[%emt 0:00:02]} 2. f4 {[%emt 0:00:36]} e6 {[%emt 0:01:23]} 3. Nc3 {[%emt 0:04:15]} Nc6 {[%emt 0:00:49]} 4. Bc4 {[%emt 0:00:25]} a6 {[%emt 0:01:40]} 5. a4 {[%emt 0:00:23]} Qc7 {[%emt 0:03:18]} 6. d3 {[%emt 0:00:14]} Nge7 {[%emt 0:03:36]} 7. Nge2 {[%emt 0:02:28]} Nb4 {[%emt 0:07:01]} 8. O-O {[%emt 0:00:59]} d5 {[%emt 0:04:51]} 9. exd5 {[%emt 0:03:07]} exd5 {[%emt 0:00:04]} 10. Bb3 {[%emt 0:01:33]} Bf5 {[%emt 0:03:33]} 11. Ng3 {[%emt 0:02:21]} c4 {[%emt 0:01:56]} 12. Nxf5 {[%emt 0:00:46]} Nxf5 {[%emt 0:00:07]} 13. dxc4 {[%emt 0:00:45]} dxc4 {[%emt 0:00:35]} 14. Ba2 {[%emt 0:00:17]} Be7 {[%emt 0:05:09]} 15. Ne4 {[%emt 0:12:06]} O-O {[%emt 0:01:28]} 16. Bb1 {[%emt 0:02:17]} Qc6 {[%emt 0:01:19]} 17. c3 {[%emt 0:09:11]} Nd5 {[%emt 0:01:22]} 18. Qf3 {[%emt 0:06:19]} b6 {[%emt 0:19:25]} 19. Kh1 {[%emt 0:00:21]} Nh4 {[%emt 0:11:23]} 20. Qg4 {[%emt 0:12:57]} f5 {[%emt 0:04:11]} 21. Qh5 {[%emt 0:04:20]} Rad8 {[%emt 0:11:57]} 22. Ng5 {[%emt 0:07:54]} Bxg5 {[%emt 0:06:18]} 23. Qxg5 {[%emt 0:00:50]} Qf6 {[%emt 0:03:51]} 24. Qxf6 {[%emt 0:05:02]} Rxf6 {[%emt 0:00:25]} 25. g3 {[%emt 0:01:18]} Ng6 {[%emt 0:00:18]} 26. Re1 {[%emt 0:06:56]} Rf7 {[%emt 0:01:22]} 27. Re6 {[%emt 0:07:00]} Nge7 {[%emt 0:05:16]} 28. Kg2 {[%emt 0:01:19]} Nc8 {[%emt 0:00:27]} 29. Ba2 {[%emt 0:00:24]} Rc7 {[%emt 0:00:16]} 30. h3 {[%emt 0:01:22]} Kf7 {[%emt 0:00:33]} 31. Re5 {[%emt 0:00:27]} Nce7 {[%emt 0:00:35]} 32. Bb1 {[%emt 0:00:16]} g6 {[%emt 0:00:11]} 33. Kf3 {[%emt 0:00:39]} Nc6 {[%emt 0:00:24]} 34. Re2 {[%emt 0:01:19]} Na5 {[%emt 0:00:23]} 35. Bc2 {[%emt 0:00:26]} Nf6 {[%emt 0:00:33]} 36. Be3 {[%emt 0:00:39]} Nd5 {[%emt 0:00:13]} 37. Bd4 {[%emt 0:00:15]} Nc6 {[%emt 0:00:23]} 38. Bf2 {[%emt 0:00:41]} Rcd7 {[%emt 0:00:58]} 39. Rae1 {[%emt 0:00:35]} Rd6 {[%emt 0:00:17]} 40. g4 {[%emt 0:00:45]} fxg4+ {[%emt 0:00:42]} 41. hxg4 {[%emt 0:00:07]} Rf6 {[%emt 0:01:10]} 42. f5 {[%emt 0:01:34]} gxf5 {[%emt 0:00:34]} 43. gxf5 {[%emt 0:00:27]} Nce7 {[%emt 0:00:28]} 44. Bh4 {[%emt 0:00:28]} Nxf5 {[%emt 0:00:59]} 45. Bxf6 {[%emt 0:00:20]} Kxf6 {[%emt 0:00:03]} 46. Re6+ {[%emt 0:00:18]} Kg5 {[%emt 0:00:19]} 47. Rg1+ {[%emt 0:00:29]} Kh5 {[%emt 0:00:12]} 48. Bxf5 {[%emt 0:00:11]} Rf8 {[%emt 0:00:13]} 49. Ke4 {[%emt 0:00:18]} Nf6+ {[%emt 0:00:07]} 50. Ke5 {[%emt 0:00:38]} Re8 {[%emt 0:01:10]} 51. Kxf6 {[%emt 0:00:13]} Rxe6+ {[%emt 0:00:05]} 52. Kxe6 {[%emt 0:00:17]} Kh4 {[%emt 0:00:14]} 53. Bxh7 {[%emt 0:00:13]} Kh3 {[%emt 0:00:03]} 54. Kd5 {[%emt 0:00:06]} Kh2 {[%emt 0:00:04]} 55. Rg6 {[%emt 0:00:05]} b5 {[%emt 0:00:03]} 56. Rxa6 {[%emt 0:00:25]} 1-0

[Event "FIDE World Cup G12-B 2024"]
[Site "Batumi"]
[Date "2024.06.29"]
[Round "7.12"]
[White "Bechvaia, Anastasia"]
[Black "Nakashidze, Nino"]
[Result "1/2-1/2"]
[ECO "E13"]
[WhiteElo "1549"]
[BlackElo "1618"]
[Annotator "NA RC"]
[PlyCount "69"]
[EventDate "2024.06.23"]
[EventType "swiss"]
[EventCountry "GEO"]
[SourceTitle "playchess.com"]
[Source "ChessBase"]
[SourceQuality "1"]
[TimeControl "5400+30"]

1. d4 {[%emt 0:00:01]} Nf6 {[%emt 0:00:10]} 2. c4 {[%emt 0:00:05]} e6 {[%emt 0:00:08]} 3. Nc3 {[%emt 0:00:07]} Bb4 {[%emt 0:00:09]} 4. Nf3 {[%emt 0:00:44]} O-O {[%emt 0:00:19]} 5. Bg5 {[%emt 0:00:06]} h6 {[%emt 0:00:39]} 6. Bh4 {[%emt 0:00:12]} d6 {[%emt 0:01:59]} 7. e3 {[%emt 0:00:50]} Nbd7 {[%emt 0:01:14]} 8. Be2 {[%emt 0:00:18]} b6 {[%emt 0:00:59]} 9. O-O {[%emt 0:00:15]} Bxc3 {[%emt 0:00:38]} 10. bxc3 {[%emt 0:00:12]} Bb7 {[%emt 0:01:37]} 11. Qc2 {[%emt 0:00:18]} Rc8 {[%emt 0:10:17]} 12. Rfd1 {[%emt 0:02:39]} g5 {[%emt 0:06:21]} 13. Bg3 {[%emt 0:00:11]} Kg7 {[%emt 0:00:13]} 14. Nd2 {[%emt 0:03:37]} Rh8 {[%emt 0:01:10]} 15. h4 {[%emt 0:04:15]} Qg8 {[%emt 0:04:50]} 16. Bf3 {[%emt 0:00:55]} Bxf3 {[%emt 0:00:53]} 17. Nxf3 {[%emt 0:00:13]} Kf8 {[%emt 0:03:31]} 18. d5 {[%emt 0:01:31]} Ke7 {[%emt 0:05:09]} 19. dxe6 {[%emt 0:03:05]} fxe6 {[%emt 0:00:43]} 20. e4 {[%emt 0:06:50]} e5 {[%emt 0:01:26]} 21. Qe2 {[%emt 0:07:36]} Nc5 {[%emt 0:03:57]} 22. Nd2 {[%emt 1:07:30]} Rf8 {[%emt 0:02:05]} 23. a4 {[%emt 0:00:00]} a5 {[%emt 0:01:53]} 24. f3 {[%emt 0:00:00]} Nh5 {[%emt 0:02:47]} 25. Nf1 {[%emt 0:00:00]} Ne6 {[%emt 0:04:33]} 26. Qe1 {[%emt 0:00:00]} Nhf4 {[%emt 0:04:53]} 27. Ne3 {[%emt 0:00:00]} Ng7 {[%emt 0:04:30]} 28. Nd5+ {[%emt 0:00:00]} Nxd5 {[%emt 0:00:29]} 29. cxd5 {[%emt 0:00:00]} Nh5 {[%emt 0:01:56]} 30. Rab1 {[%emt 0:00:00]} Nf4 {[%emt 0:02:44]} 31. Kh2 {[%emt 0:00:00]} Kd7 {[%emt 0:02:52]} 32. Rd2 {[%emt 0:00:00]} Qg7 {[%emt 0:03:32]} 33. Rbb2 {[%emt 0:00:00]} Rhg8 {[%emt 0:04:31]} 34. Qf1 {[%emt 0:00:00]} Qg6 {[%emt 0:01:19]} 35. Qb5+ {[%emt 0:00:00]} 1/2-1/2